bitfinex/quotes_BTCUSD_20240803
["timestamp","ask_amount","ask_price","bid_price","bid_amount"]
[1722727459997,0.08239222,60863.0,60850.0,0.16575089]
[1722727460187,0.08239222,60862.0,60850.0,0.16575089]
[1722727460402,0.08239222,60863.0,60850.0,0.16575089]
[1722727460536,0.023,60862.0,60850.0,0.16575089]
[1722727460732,0.08236856,60861.0,60850.0,0.16575089]
[1722727460934,0.023,60862.0,60850.0,0.16575089]
[1722727460935,0.023,60860.0,60850.0,0.16575089]
[1722727461137,0.023,60862.0,60851.0,0.082167]
[1722727461361,0.02383,60864.0,60852.0,0.24791689]
[1722727461537,0.02577743,60858.0,60852.0,0.24791689]
[1722727461737,0.02383,60864.0,60853.0,0.1965]
[1722727461941,0.00083,60864.0,60855.0,0.1491]
[1722727462173,0.00083,60864.0,60856.0,0.24791089]
[1722727462372,0.00083,60864.0,60857.0,0.1965]
[1722727462547,0.00083,60864.0,60863.0,0.1965]
[1722727463754,0.00083,60864.0,60863.0,0.36225089]
[1722727464486,0.00083,60864.0,60863.0,0.44440189]
[1722727464690,0.00083,60864.0,60863.0,0.94440189]
[1722727464916,0.00083,60864.0,60863.0,0.94740189]
[1722727465123,0.00083,60864.0,60863.0,0.94440189]
[1722727465473,0.00083,60864.0,60863.0,0.95140189]
[1722727465676,0.00083,60864.0,60863.0,1.11570489]
[1722727465911,0.00083,60864.0,60863.0,0.95140189]
[1722727466111,0.00083,60864.0,60863.0,0.95540189]
[1722727466243,0.00083,60864.0,60863.0,1.11970489]
[1722727466643,0.00083,60864.0,60863.0,0.95540189]
[1722727466844,0.00083,60864.0,60863.0,1.11970489]
[1722727467114,0.00083,60864.0,60863.0,1.27900489]
[1722727467234,0.00083,60864.0,60863.0,1.44330789]
[1722727467831,0.00083,60864.0,60863.0,1.45330789]
[1722727468240,0.00083,60864.0,60863.0,1.44630789]
[1722727468436,0.02660144,60864.0,60863.0,1.44630789]
[1722727468846,0.02660144,60864.0,60863.0,1.44230789]
[1722727469048,0.02660144,60864.0,60863.0,1.27800489]
[1722727469270,0.02660144,60864.0,60863.0,1.28200489]
[1722727469843,0.02660144,60864.0,60863.0,1.26800489]
[1722727469970,0.02660144,60864.0,60863.0,1.27800489]
[1722727470208,0.0237407,60864.0,60863.0,1.28600489]
[1722727470382,0.0237407,60864.0,60863.0,1.46030789]
[1722727470584,0.00083,60866.0,60865.0,0.246447]
[1722727470818,0.00083,60866.0,60865.0,0.41548337]
[1722727471618,0.00083,60866.0,60865.0,0.25118537]
[1722727471816,0.00083,60866.0,60865.0,0.41548337]
[1722727472046,0.00083,60866.0,60865.0,0.25118537]
[1722727472250,0.00083,60866.0,60865.0,0.41548337]
[1722727472453,0.00083,60866.0,60865.0,0.43048337]
[1722727473054,0.00083,60866.0,60865.0,0.42048337]
[1722727473276,0.00083,60866.0,60865.0,0.42848337]
[1722727473674,0.02660074,60866.0,60865.0,0.42848337]
[1722727473877,0.02660074,60866.0,60865.0,0.42348337]
[1722727474082,0.02660074,60866.0,60865.0,0.77478137]
[1722727474400,0.02660074,60866.0,60865.0,0.79278137]
[1722727474540,0.02660074,60866.0,60865.0,0.88478137]
[1722727474741,0.02660074,60866.0,60865.0,1.03738137]
[1722727474945,0.02660074,60866.0,60865.0,1.04538137]
[1722727475405,0.02660074,60866.0,60865.0,1.05038137]
[1722727475607,0.02660074,60866.0,60865.0,1.21667937]
[1722727475808,0.02660074,60866.0,60865.0,1.23167937]
[1722727476035,0.02660074,60866.0,60865.0,1.24267937]
[1722727476244,0.02660074,60866.0,60865.0,1.23467937]
[1722727476649,0.02660074,60866.0,60865.0,1.3422034]
[1722727476848,0.02660074,60866.0,60865.0,1.3232034]
[1722727477006,0.00083,60866.0,60865.0,1.3512034]
[1722727477407,0.00083,60866.0,60865.0,1.3372034]
[1722727477641,0.00083,60866.0,60865.0,1.5155014]
[1722727477808,0.00083,60866.0,60865.0,1.51570876]
[1722727478007,0.00083,60866.0,60865.0,1.49842328]
[1722727478282,0.00083,60866.0,60865.0,1.51242328]
[1722727478443,0.00083,60866.0,60865.0,1.49842328]
[1722727478644,0.00083,60866.0,60865.0,1.51242328]
[1722727478841,0.00083,60866.0,60865.0,1.34812528]
[1722727479253,0.00083,60866.0,60865.0,1.33412528]
[1722727479449,0.00926,60878.0,60877.0,0.593997]
[1722727479770,0.00926,60878.0,60877.0,0.85974789]
[1722727480945,0.00926,60878.0,60877.0,0.87374789]
[1722727481155,0.00926,60878.0,60877.0,0.85974789]
[1722727481539,0.00926,60878.0,60877.0,0.87374789]
[1722727481969,0.00926,60878.0,60877.0,0.88774789]
[1722727482173,0.00926,60878.0,60877.0,0.72348289]
[1722727482300,0.00926,60878.0,60877.0,0.70948289]
[1722727482746,0.00926,60878.0,60877.0,0.72348289]
[1722727483159,0.00926,60878.0,60877.0,0.19375089]
[1722727483362,0.00926,60878.0,60877.0,0.16575089]
[1722727483616,0.00926,60878.0,60877.0,0.19375089]
[1722727483816,0.00926,60878.0,60877.0,0.17975089]
[1722727484255,0.00926,60878.0,60877.0,0.028]
[1722727484461,0.00926,60878.0,60877.0,0.014]
[1722727485045,0.00926,60878.0,60872.0,0.1]
[1722727485254,0.00157439,60877.0,60873.0,0.16575089]
[1722727485453,0.00926,60878.0,60873.0,0.16575089]
[1722727485884,0.00926,60878.0,60877.0,0.014]
[1722727486497,0.00926,60878.0,60873.0,0.16575089]
[1722727486785,0.00926,60878.0,60873.0,0.17975089]
[1722727486926,0.00157439,60877.0,60873.0,0.17975089]
[1722727487127,0.00157439,60877.0,60873.0,0.19375089]
[1722727487978,0.00926,60878.0,60873.0,0.19375089]
[1722727488187,0.02734157,60877.0,60873.0,0.028]
[1722727488617,0.00157439,60877.0,60873.0,0.014]
[1722727488824,0.00926,60878.0,60868.0,0.08291805]
[1722727489017,0.255653,60878.0,60877.0,0.014]
[1722727489239,0.091391,60878.0,60877.0,0.014]
[1722727489441,0.091391,60878.0,60868.0,0.24866894]
[1722727489442,0.00157439,60877.0,60868.0,0.24866894]
[1722727489653,0.00157439,60877.0,60873.0,0.002]
[1722727489851,0.00157439,60877.0,60875.0,0.08291805]
[1722727490478,0.00926,60878.0,60877.0,0.002]
[1722727490894,0.00926,60878.0,60875.0,0.08291805]
[1722727491954,0.03502786,60878.0,60875.0,0.08291805]
[1722727492105,0.03502786,60878.0,60875.0,0.09491805]
[1722727492507,0.03502786,60878.0,60875.0,0.08291805]
[1722727492717,0.03502786,60878.0,60875.0,0.09191805]
[1722727492920,0.03502786,60878.0,60875.0,0.09891805]
[1722727495545,0.00926,60878.0,60875.0,0.09891805]
[1722727498025,0.00926,60878.0,60876.0,0.16903604]
[1722727498448,0.00926,60878.0,60876.0,0.16575089]
[1722727499023,0.03502759,60878.0,60876.0,0.16575089]
[1722727499156,0.00926,60878.0,60876.0,0.17275089]
[1722727499361,0.00926,60878.0,60876.0,0.18175089]
[1722727499966,0.00926,60878.0,60876.0,0.016]
[1722727500283,0.00157439,60877.0,60876.0,0.016]
[1722727500483,0.00926,60878.0,60876.0,0.016]
[1722727501096,0.00926,60878.0,60876.0,0.009]
[1722727501494,0.00926,60878.0,60876.0,0.017]
[1722727501895,0.00926,60878.0,60876.0,0.009]
[1722727502059,0.03502796,60878.0,60876.0,0.009]
[1722727502261,0.00157439,60877.0,60876.0,0.016]
[1722727502715,0.00157439,60877.0,60876.0,0.007]
[1722727502913,0.00157439,60877.0,60876.0,0.018]
[1722727504187,0.34477439,60877.0,60876.0,0.018]
[1722727504395,0.96485064,60877.0,60876.0,0.011]
[1722727504747,0.96485064,60877.0,60876.0,0.019]
[1722727504748,0.44847933,60877.0,60876.0,0.019]
[1722727505348,0.53061133,60877.0,60876.0,0.011]
[1722727505827,0.082134,60876.0,60866.0,0.469313]
[1722727506019,0.08385372,60875.0,60866.0,0.469313]
[1722727506157,0.16441633,60874.0,60866.0,0.469313]
[1722727506362,0.08385372,60873.0,60866.0,0.469313]
[1722727506688,0.00157439,60873.0,60866.0,0.469313]
[1722727506882,0.00157439,60875.0,60866.0,0.469313]
[1722727507097,0.16443376,60874.0,60866.0,0.469313]
[1722727507252,0.08387115,60873.0,60866.0,0.469313]
[1722727507460,0.00157439,60873.0,60866.0,0.469313]
[1722727508905,0.00157439,60873.0,60866.0,0.471313]
[1722727509319,0.02734622,60873.0,60866.0,0.471313]
[1722727509517,0.08371339,60873.0,60866.0,0.469313]
[1722727509696,0.00157439,60873.0,60866.0,0.469313]
[1722727509950,0.00157439,60874.0,60866.0,0.000913]
[1722727510159,0.08371139,60874.0,60866.0,0.000913]
[1722727510364,0.1804,60873.0,60866.0,0.001913]
[1722727510560,0.082142,60870.0,60866.0,0.000913]
[1722727510772,0.00157439,60869.0,60866.0,0.000913]
[1722727511185,0.1079144,60870.0,60866.0,0.000913]
[1722727511410,0.08371739,60869.0,60866.0,0.000913]
[1722727511823,0.00157439,60869.0,60866.0,0.000913]
[1722727512425,0.00157439,60872.0,60866.0,0.001913]
[1722727512637,0.10671339,60872.0,60866.0,0.001913]
[1722727512837,0.082142,60870.0,60866.0,0.001913]
[1722727512985,0.02457439,60869.0,60866.0,0.000913]
[1722727513193,0.023,60868.0,60866.0,0.000913]
[1722727513414,0.00157439,60867.0,60866.0,0.009913]
[1722727513616,0.00157439,60867.0,60866.0,0.003913]
[1722727513972,0.00157439,60869.0,60866.0,0.007913]
[1722727514184,0.00157439,60869.0,60866.0,0.000913]
[1722727514370,0.00157439,60870.0,60866.0,0.000913]
[1722727514958,0.00141959,60871.0,60866.0,0.000913]
[1722727515162,0.08356059,60871.0,60866.0,0.000913]
[1722727515509,0.0487723,60870.0,60866.0,0.013913]
[1722727515726,0.00141959,60869.0,60866.0,0.013913]
[1722727515930,0.00141959,60869.0,60866.0,0.005913]
[1722727516187,0.00141959,60869.0,60866.0,0.002913]
[1722727516308,0.00141959,60869.0,60866.0,0.000913]
[1722727516718,0.00141959,60869.0,60866.0,0.003913]
[1722727517048,0.11311792,60872.0,60866.0,0.002913]
[1722727517049,0.00141959,60871.0,60866.0,0.002913]
[1722727517262,0.00141959,60871.0,60866.0,0.005913]
[1722727517467,0.00141959,60871.0,60866.0,0.158813]
[1722727517654,0.05849467,60878.0,60868.0,0.0467]
[1722727517848,0.0822966,60877.0,60871.0,0.08291805]
[1722727518111,0.00926,60878.0,60871.0,0.08291805]
[1722727518481,0.00926,60878.0,60869.0,0.00328543]
[1722727518660,0.00926,60878.0,60871.0,0.08291805]
[1722727519040,0.00926,60878.0,60871.0,0.13290337]
[1722727519286,0.00926,60878.0,60873.0,0.082137]
[1722727519470,0.00926,60878.0,60874.0,0.1690359]
[1722727519471,0.01026,60878.0,60874.0,0.1690359]
[1722727519846,0.01026,60878.0,60874.0,0.16575089]
[1722727520190,0.00926,60878.0,60872.0,0.3366]
[1722727520399,0.00926,60878.0,60873.0,0.16575089]
[1722727520553,0.00926,60878.0,60874.0,0.004]
[1722727520554,0.1553,60877.0,60874.0,0.004]
[1722727521607,0.00926,60878.0,60875.0,0.08291805]
[1722727522873,0.00926,60878.0,60876.0,0.3366]
[1722727523251,0.00926,60878.0,60876.0,0.50235089]
[1722727523453,0.03502775,60878.0,60876.0,0.50235089]
[1722727523913,0.03502775,60878.0,60877.0,0.16903591]
[1722727524100,0.03502775,60878.0,60877.0,0.41543291]
[1722727526102,0.03502775,60878.0,60877.0,0.42843291]
[1722727526838,0.03502775,60878.0,60877.0,0.44243291]
[1722727527038,0.03502775,60878.0,60877.0,0.42943291]
[1722727528024,0.03502775,60878.0,60877.0,0.42614789]
[1722727528583,0.03502775,60878.0,60877.0,0.44014789]
[1722727529157,0.00926,60878.0,60877.0,0.44014789]
[1722727531006,0.00926,60878.0,60877.0,0.27588289]
[1722727532327,0.00926,60878.0,60877.0,0.26188289]
[1722727532328,0.03502565,60878.0,60877.0,0.26188289]
[1722727532528,0.00926,60878.0,60877.0,0.26188289]
[1722727532894,0.00926,60878.0,60877.0,0.19375089]
[1722727533315,0.00926,60878.0,60877.0,0.17975089]
[1722727534224,0.00926,60878.0,60872.0,0.1561]
[1722727534425,0.00141959,60877.0,60873.0,0.26575089]
[1722727534649,0.00926,60878.0,60877.0,0.014]
[1722727535283,0.00926,60878.0,60873.0,0.16575089]
[1722727535488,0.00141959,60877.0,60873.0,0.16575089]
[1722727536171,0.03502811,60878.0,60877.0,0.014]
[1722727537325,0.00926,60878.0,60877.0,0.028]
[1722727537713,0.00926,60878.0,60877.0,0.014]
[1722727539315,0.00926,60878.0,60877.0,0.028]
[1722727541407,0.35376,60878.0,60877.0,0.028]
[1722727542509,0.35376,60878.0,60867.0,0.16575089]
[1722727542709,0.00141959,60877.0,60867.0,0.16575089]
[1722727543960,0.00141959,60874.0,60867.0,0.16575089]
[1722727544943,0.00141959,60877.0,60867.0,0.17575089]
[1722727545107,0.08355259,60877.0,60867.0,0.17575089]
[1722727545327,0.08355259,60877.0,60867.0,0.16575089]
[1722727545519,0.00141959,60877.0,60867.0,0.16575089]
[1722727545911,0.082137,60874.0,60867.0,0.027]
[1722727546117,0.164269,60876.0,60867.0,0.027]
[1722727546118,0.15721959,60873.0,60867.0,0.027]
[1722727546352,0.23935759,60873.0,60867.0,0.027]
[1722727546551,0.15721959,60873.0,60867.0,0.027]
[1722727547069,0.15721959,60873.0,60866.0,0.000913]
[1722727547272,0.15721959,60873.0,60867.0,0.002]
[1722727547513,0.15721959,60873.0,60867.0,0.012]
[1722727547889,0.0257707,60872.0,60867.0,0.002]
[1722727548090,0.00141959,60871.0,60867.0,0.002]
[1722727548983,0.00141959,60871.0,60867.0,0.003]
[1722727549186,0.00141959,60871.0,60867.0,0.001]
[1722727549388,0.00141959,60871.0,60867.0,0.006]
[1722727549808,0.00141959,60872.0,60867.0,0.006]
[1722727550418,0.00141959,60872.0,60867.0,0.005]
[1722727550617,0.00141959,60872.0,60867.0,0.007]
[1722727550828,0.00141959,60872.0,60867.0,0.002]
[1722727551873,0.00141959,60872.0,60866.0,0.000913]
[1722727552046,0.00141959,60872.0,60867.0,0.001]
[1722727552247,0.00141959,60872.0,60867.0,0.004]
[1722727552429,0.00141959,60872.0,60867.0,0.001]
[1722727552628,0.00141959,60872.0,60867.0,0.007]
[1722727553047,0.02577081,60871.0,60867.0,0.007]
[1722727553248,0.00141959,60870.0,60867.0,0.007]
[1722727553497,0.00141959,60872.0,60867.0,0.007]
[1722727553627,0.00141959,60872.0,60867.0,0.006]
[1722727553828,0.00141959,60872.0,60867.0,0.01]
[1722727554039,0.00141959,60872.0,60867.0,0.004]
[1722727554446,0.00141959,60872.0,60867.0,0.004913]
[1722727555281,0.00141959,60872.0,60867.0,0.011913]
[1722727555500,0.00141959,60872.0,60867.0,0.004913]
[1722727556507,0.00141959,60872.0,60867.0,0.010913]
[1722727556746,0.07247075,60871.0,60867.0,0.010913]
[1722727556883,0.00141959,60870.0,60867.0,0.010913]
[1722727557655,0.00141959,60870.0,60867.0,0.006913]
[1722727558054,0.00141959,60871.0,60867.0,0.006913]
[1722727558469,0.00141959,60871.0,60867.0,0.000913]
[1722727558671,0.00141959,60871.0,60867.0,0.002913]
[1722727559017,0.00141959,60871.0,60867.0,0.000913]
[1722727559218,0.00141959,60871.0,60867.0,0.002913]
[1722727559423,0.00141959,60871.0,60867.0,0.000913]
[1722727560064,0.00141959,60871.0,60867.0,0.002913]
[1722727560302,0.00141959,60871.0,60867.0,0.000913]
[1722727560586,0.00141959,60871.0,60867.0,0.001913]
[1722727561050,0.02719114,60871.0,60868.0,0.43349489]
[1722727561261,0.02577155,60871.0,60868.0,0.35135089]
[1722727562170,0.02577155,60871.0,60870.0,0.41071]
[1722727562388,0.02577155,60871.0,60870.0,1.10765895]
[1722727562819,0.02577155,60871.0,60870.0,1.11765895]
[1722727563039,0.02577155,60871.0,60870.0,1.28194295]
[1722727563475,0.02577155,60871.0,60870.0,1.28794295]
[1722727564329,0.02577155,60871.0,60870.0,1.30794295]
[1722727564530,0.02577155,60871.0,60870.0,1.20954489]
[1722727564736,0.02577155,60871.0,60870.0,1.32257518]
[1722727564936,0.02577155,60871.0,60870.0,1.22354489]
[1722727565155,0.02577155,60871.0,60870.0,1.32257492]
[1722727565361,0.02577155,60871.0,60870.0,1.31657492]
[1722727565563,0.02577155,60871.0,60870.0,1.31057492]
[1722727566716,0.02577155,60871.0,60870.0,1.33257492]
[1722727566934,0.02577155,60871.0,60870.0,1.30457492]
[1722727567062,0.00083,60873.0,60872.0,0.604976]
[1722727567271,0.00083,60873.0,60872.0,1.45157497]
[1722727567880,0.00083,60873.0,60872.0,1.8383297]
[1722727568094,0.00926,60878.0,60877.0,1.003827]
[1722727568446,1e-08,60878.0,60877.0,1.70627292]
[1722727568648,0.0001,60890.0,60877.0,1.70627292]
[1722727568649,0.0001,60890.0,60889.0,0.955015]
[1722727568849,0.0001,60890.0,60889.0,1.36649592]
[1722727569034,0.0001,60890.0,60889.0,1.36849592]
[1722727569496,0.0001,60890.0,60889.0,1.53272892]
[1722727569709,0.00926,60903.0,60902.0,0.430495]
[1722727569836,0.00926,60903.0,60902.0,1.18203532]
[1722727570036,0.00926,60903.0,60902.0,0.75614789]
[1722727570461,0.00926,60903.0,60902.0,0.59194989]
[1722727570726,0.00926,60903.0,60902.0,0.75614789]
[1722727571019,0.00926,60903.0,60902.0,0.46315089]
[1722727571347,0.00926,60903.0,60902.0,0.16575089]
[1722727571976,0.00926,60903.0,60902.0,0.17975089]
[1722727572597,0.00926,60903.0,60902.0,0.19375089]
[1722727572802,0.00926,60903.0,60902.0,0.17975089]
[1722727573242,0.00926,60903.0,60902.0,0.16575089]
[1722727573439,0.00926,60903.0,60902.0,0.19375089]
[1722727574412,0.00926,60903.0,60902.0,0.17975089]
[1722727574917,0.00926,60903.0,60902.0,0.27584989]
[1722727575171,0.03501612,60903.0,60902.0,0.44004789]
[1722727575412,0.03501612,60903.0,60902.0,0.27913326]
[1722727575648,0.03501612,60903.0,60902.0,0.27584989]
[1722727576339,0.03501612,60903.0,60902.0,0.19375089]
[1722727577794,0.03501612,60903.0,60902.0,0.27584989]
[1722727577993,0.03501612,60903.0,60902.0,0.47324989]
[1722727578617,0.03501612,60903.0,60902.0,0.39115089]
[1722727580517,0.03501612,60903.0,60902.0,0.47324989]
[1722727580926,0.03501612,60903.0,60902.0,0.63744789]
[1722727581136,0.03501612,60903.0,60902.0,0.47324989]
[1722727583103,0.03501612,60903.0,60902.0,0.39115089]
[1722727585512,0.00926,60903.0,60902.0,0.39115089]
[1722727585763,0.00926,60903.0,60902.0,0.19375089]
[1722727585957,0.00926,60903.0,60902.0,0.028]
[1722727586794,0.19036,60903.0,60902.0,0.014]
[1722727587025,0.19036,60903.0,60891.0,0.55131805]
[1722727587214,0.00141959,60902.0,60892.0,0.16575089]
[1722727587425,0.00141959,60902.0,60892.0,0.16666389]
[1722727588795,0.02575833,60900.0,60898.0,0.08291805]
[1722727588978,0.00141959,60899.0,60898.0,0.24866894]
[1722727589183,0.02575833,60900.0,60898.0,0.24866894]
[1722727589817,0.00926,60903.0,60898.0,0.24866894]
[1722727590015,0.00141959,60902.0,60898.0,0.25966894]
[1722727590481,0.00141959,60902.0,60899.0,0.16903469]
[1722727590625,0.00926,60903.0,60899.0,0.16903469]
[1722727590981,0.00926,60903.0,60899.0,0.31633469]
[1722727591183,0.00926,60903.0,60900.0,0.1932]
[1722727591311,0.00926,60903.0,60901.0,0.16903454]
[1722727592415,0.00926,60903.0,60902.0,0.082099]
[1722727592558,0.00926,60903.0,60902.0,0.41204789]
[1722727593130,0.03501524,60903.0,60902.0,0.24784989]
[1722727593406,0.03501524,60903.0,60902.0,0.41204789]
[1722727593637,0.03501524,60903.0,60902.0,0.41804789]
[1722727594020,0.03501524,60903.0,60902.0,0.60424589]
[1722727594229,0.03501524,60903.0,60902.0,0.59824589]
[1722727594457,0.00926,60903.0,60902.0,0.59724589]
[1722727594667,0.00926,60903.0,60902.0,0.60724589]
[1722727594864,0.00926,60903.0,60902.0,0.59724589]
[1722727595067,0.00926,60903.0,60902.0,0.70724589]
[1722727595275,0.00426,60903.0,60902.0,0.80594209]
[1722727595479,0.00426,60903.0,60902.0,1.12704209]
[1722727596058,0.00426,60903.0,60902.0,1.12747213]
[1722727596268,0.00426,60903.0,60902.0,1.14747213]
[1722727596472,0.00426,60903.0,60902.0,1.12635565]
[1722727596678,0.00426,60903.0,60902.0,1.14035565]
[1722727596873,0.00426,60903.0,60902.0,1.11535565]
[1722727597086,0.00426,60903.0,60902.0,1.29955365]
[1722727597292,0.00426,60903.0,60902.0,1.32755365]
[1722727597496,0.00426,60903.0,60902.0,1.31355365]
[1722727597693,0.0300136,60903.0,60902.0,1.31355365]
[1722727597869,0.0300136,60903.0,60902.0,1.32755365]
[1722727598071,0.00426,60903.0,60902.0,1.30755365]
[1722727598296,0.00426,60903.0,60902.0,1.32755365]
[1722727598670,0.00426,60903.0,60902.0,1.31355365]
[1722727598942,0.00426,60903.0,60902.0,1.32755365]
[1722727599271,0.00426,60903.0,60902.0,1.27955365]
[1722727599477,0.00426,60903.0,60902.0,1.31330939]
[1722727599690,0.00426,60903.0,60902.0,1.32730939]
[1722727600059,0.00426,60903.0,60902.0,1.30730939]
[1722727600194,0.00426,60903.0,60902.0,1.31330939]
[1722727600737,0.00426,60903.0,60902.0,1.32730939]
[1722727601116,0.00426,60903.0,60902.0,1.31330939]
[1722727601332,0.03001162,60903.0,60902.0,1.31330939]
[1722727601684,0.00426,60903.0,60902.0,1.31330939]
[1722727601881,0.00426,60903.0,60902.0,1.30130939]
[1722727602131,0.00426,60903.0,60902.0,1.31530939]
[1722727602339,0.00426,60903.0,60902.0,1.32930939]
[1722727602541,0.00426,60903.0,60902.0,1.65290739]
[1722727602741,0.00426,60903.0,60902.0,1.66190739]
[1722727603085,0.00426,60903.0,60902.0,1.68998805]
[1722727603295,0.00426,60903.0,60902.0,1.7582165]
[1722727603464,0.00426,60903.0,60902.0,1.67598805]
[1722727604052,0.00426,60903.0,60902.0,1.68998805]
[1722727604669,0.00426,60903.0,60902.0,1.75821523]
[1722727604876,0.00426,60903.0,60902.0,1.74421523]
[1722727605291,0.00926,60917.0,60916.0,0.94236]
[1722727605520,0.00926,60917.0,60916.0,1.5055751]
[1722727605721,0.00926,60917.0,60916.0,1.11179705]
[1722727606251,0.00926,60917.0,60916.0,0.79373705]
[1722727606461,0.00926,60917.0,60916.0,0.26475089]
[1722727606857,0.00926,60917.0,60916.0,0.27875089]
[1722727607022,0.00926,60917.0,60916.0,0.29275089]
[1722727607283,0.00926,60917.0,60916.0,0.27875089]
[1722727607807,0.00926,60917.0,60916.0,0.17875089]
[1722727608342,0.00926,60917.0,60916.0,0.16475089]
[1722727608774,0.00926,60917.0,60916.0,0.19275089]
[1722727609345,0.03500914,60917.0,60916.0,0.19275089]
[1722727610172,0.36980914,60917.0,60916.0,0.19275089]
[1722727611063,0.36980914,60917.0,60916.0,0.028]
[1722727611510,0.36980914,60917.0,60916.0,0.014]
[1722727611774,0.34406,60917.0,60916.0,0.028]
[1722727612232,0.34406,60917.0,60916.0,0.014]
[1722727612443,0.1513,60916.0,60905.0,0.55131805]
[1722727612648,0.00141959,60915.0,60906.0,0.16575089]
[1722727612879,0.1513,60908.0,60906.0,0.16575089]
[1722727613093,0.1513,60908.0,60898.0,0.08291805]
[1722727613094,0.00141959,60907.0,60898.0,0.08291805]
[1722727613304,0.00141959,60907.0,60899.0,0.16575089]
[1722727615580,0.00141959,60907.0,60905.0,0.012]
[1722727616175,0.00141959,60907.0,60899.0,0.17375089]
[1722727616411,0.00141959,60907.0,60906.0,0.08291805]
[1722727616649,0.1513,60913.0,60906.0,0.24866894]
[1722727616858,0.00141959,60912.0,60907.0,0.16575089]
[1722727617020,0.00141959,60912.0,60907.0,0.16903414]
[1722727617223,0.00141959,60912.0,60907.0,0.16575089]
[1722727617809,0.00141959,60912.0,60908.0,0.08291805]
[1722727619170,0.00141959,60912.0,60908.0,0.000913]
[1722727619375,0.027174,60912.0,60908.0,0.000913]
[1722727619570,0.027174,60912.0,60908.0,0.003913]
[1722727619785,0.027174,60912.0,60908.0,0.004913]
[1722727620213,0.027174,60912.0,60909.0,0.16575089]
[1722727621754,0.027174,60912.0,60909.0,0.16675089]
[1722727622190,0.027174,60912.0,60909.0,0.16975089]
[1722727622807,0.027174,60912.0,60909.0,0.16675089]
[1722727623047,0.027174,60912.0,60909.0,0.16575089]
[1722727623249,0.027174,60912.0,60909.0,0.16875089]
[1722727623469,0.027174,60912.0,60909.0,0.16975089]
[1722727623682,0.027174,60912.0,60909.0,0.004]
[1722727626162,0.419987,60911.0,60909.0,0.004]
[1722727626362,0.00141959,60910.0,60909.0,0.004]
[1722727627859,0.15661959,60910.0,60909.0,0.003]
[1722727628067,0.15661959,60910.0,60908.0,0.000913]
[1722727629087,0.15661959,60910.0,60909.0,0.001]
[1722727629296,0.15661959,60910.0,60908.0,0.000913]
[1722727629497,0.15661959,60910.0,60908.0,0.001913]
[1722727630020,0.00141959,60910.0,60908.0,0.001913]
[1722727630194,0.00141959,60911.0,60908.0,0.001913]
[1722727630575,0.02575441,60912.0,60908.0,0.001913]
[1722727630779,0.02575441,60912.0,60909.0,0.16575089]
[1722727630985,0.02575441,60912.0,60909.0,0.25112309]
[1722727631373,0.02575441,60912.0,60909.0,0.16903409]
[1722727631571,0.00926,60917.0,60909.0,0.16903409]
[1722727632002,0.00926,60917.0,60909.0,0.17103409]
[1722727632390,0.00926,60917.0,60909.0,0.17575089]
[1722727632607,0.00124093,60915.0,60909.0,0.16575089]
[1722727632813,0.00124093,60915.0,60909.0,0.16975089]
[1722727633019,0.00141397,60916.0,60909.0,0.16975089]
[1722727633225,0.00926,60917.0,60909.0,0.16975089]
[1722727633436,0.00141959,60916.0,60909.0,0.16975089]
[1722727633883,0.00926,60917.0,60909.0,0.16975089]
[1722727634081,0.00926,60917.0,60909.0,0.16675089]
[1722727634282,0.00926,60917.0,60909.0,0.16575089]
[1722727634490,0.02575273,60916.0,60909.0,0.16575089]
[1722727634691,0.02575273,60916.0,60910.0,0.082087]
[1722727634893,0.02575273,60916.0,60911.0,0.16903398]
[1722727635308,0.02575273,60916.0,60911.0,0.16575089]
[1722727636057,0.02575273,60916.0,60911.0,0.16875089]
[1722727637506,0.02575273,60916.0,60911.0,0.16575089]
[1722727637893,0.02575273,60916.0,60911.0,0.16775089]
[1722727638133,0.02575273,60916.0,60911.0,0.17175089]
[1722727638350,0.02575273,60916.0,60911.0,0.25383689]
[1722727638559,0.02575273,60916.0,60911.0,0.17175089]
[1722727639221,0.02575273,60916.0,60911.0,0.25711999]
[1722727639379,0.02575273,60916.0,60912.0,0.082085]
[1722727639583,0.00926,60917.0,60913.0,0.16575089]
[1722727640268,0.00926,60917.0,60916.0,0.08208]
[1722727640464,0.00926,60917.0,60916.0,0.41527372]
[1722727640671,0.00926,60917.0,60916.0,0.93183372]
[1722727640869,0.00926,60917.0,60916.0,1.02519141]
[1722727641087,0.00926,60917.0,60916.0,1.12519141]
[1722727641281,0.00926,60917.0,60916.0,1.12619141]
[1722727641839,0.00926,60917.0,60916.0,0.95774858]
[1722727641950,0.00926,60917.0,60916.0,1.12190858]
[1722727642156,0.00926,60917.0,60916.0,1.04255089]
[1722727642441,0.00926,60917.0,60916.0,1.15061311]
[1722727642644,0.03500741,60917.0,60916.0,1.15061311]
[1722727642854,0.03500741,60917.0,60916.0,1.13661311]
[1722727643053,0.03500741,60917.0,60916.0,0.98645311]
[1722727643337,0.03500741,60917.0,60916.0,0.19375089]
[1722727643593,0.03500741,60917.0,60916.0,0.17975089]
[1722727643973,0.21770741,60917.0,60916.0,0.028]
[1722727644377,0.21770741,60917.0,60908.0,0.083003]
[1722727644604,0.00141959,60916.0,60909.0,0.16575089]
[1722727644796,0.19196,60917.0,60909.0,0.16575089]
[1722727645195,0.19196,60917.0,60916.0,0.014]
[1722727645612,0.19196,60917.0,60909.0,0.24866894]
[1722727645851,0.19196,60917.0,60909.0,0.26266894]
[1722727646283,0.19196,60917.0,60909.0,0.24866894]
[1722727646918,0.19196,60917.0,60910.0,0.082087]
[1722727647127,0.00926,60917.0,60916.0,0.014]
[1722727647526,0.00926,60917.0,60911.0,0.24783689]
[1722727647760,0.00926,60917.0,60916.0,0.014]
[1722727647955,0.03501042,60917.0,60916.0,0.014]
[1722727648695,0.00926,60917.0,60916.0,0.014]
[1722727649761,0.00926,60917.0,60916.0,0.028]
[1722727650140,0.00926,60917.0,60916.0,0.35791089]
[1722727650350,0.00926,60917.0,60916.0,0.61313089]
[1722727651189,0.00926,60917.0,60916.0,0.77729089]
[1722727651391,0.00926,60917.0,60916.0,0.74929089]
[1722727651802,0.00926,60917.0,60916.0,0.77729089]
[1722727652185,0.03500983,60917.0,60916.0,0.77729089]